Workbook

Sheet c-zeta_graph_01 (2)
A1: 64 | B1: 64 | C1: 48 | D1: 64 | E1: 74 | F1: 74 | G1: 52 | H1: 58 | I1: 114 | J1: 64 | K1: 56 | L1: 56 | M1: 56 | R1: zeta_fkcz_create_targ_chart.xlsm
A2: 3-25-19
A3: This tab is designed to compare 'target to target' as found on openLevFk_crz_create_target.php. | AW3: end
A4: This tab compares two of our current c-zeta targets that are based on soft-aver-stiff as found in fkc target nu. | R4: graph size = 3.5 x 7 at 80% page size . . . . for openLevRatioSh__change_crz_adj_target.php
B5: id 7, _a | R5: (don't change size as top text line doesn't fit
B6: id 3, _b
B9: We built this page so we could create graphs that we can put on website so we could get a visual idea of the differences between the two c-zeta curves.
B11: CONCLUSLION: This graph shows the difference between the three current c-zeta curves. Visuall this doesn't help me much. ADJUST COMMENT ------>
B13: Next we will take 3304s c-zeta curve and create different curves all starting from same c force at 1ips.
B14: See 'c-zeta_create_curves' tab
A16: --> copy and paste to cell c20, C40, C60 from Lev Ratio > [fk cr-zeta - create targ] > [sh cr-zeta - copy targ nu]
A17: --> This page is done.
A20: k.spring | B20: =K20*2.20462*25.4*12 -> 645.089449 | C20: 3210 | D20: 2015 XCF 350 | F20: 5-18-18 | H20: macro | I20: spr = | K20: 0.96 | L20: 'adjust' value = 1.000
H21: done | I21: levratio = | K21: 0.9
C22: ips | D22: co wogas | E22: reb | F22: r-zeta | G22: cDamp | H22: czeta | I22: c-zeta | J22: c-zeta % | K22: r/c | L22: 1
A23: cDamp | B23: co wogas | C23: 85 0.9 | G23: coeff | I23: aver b x 1.0 | K23: ratio | M23: extra
A24: coeff | D24: [target] | G24: [target] | I24: [target] | L24: 1 | M24: copy | O24: 1 | P24: 2 | Q24: % diff 1/2
A25: [calc] | B25: [calc] | C25: 0 | L25: [adjust]
A26: =L26*K$21*SQRT(4*85*B$20/32.2)/12 -> 5.515189756 | B26: =A26*C26 -> 5.515189756 | C26: 1 | D26: 2.7582 | G26: 5.5 | I26: =(L26*$L$24) -> 0.891 | L26: 0.891 | M26: 0.891 | O26: =I26 -> 0.891 | P26: =I49 -> 1.29 | Q26: =(O26/P26) -> 0.6906976744
A27: =L27*K$21*SQRT(4*85*B$20/32.2)/12 -> 4.041996533 | B27: =A27*C27 -> 8.083993066 | C27: 2 | D27: 4.0427 | G27: 4 | I27: =(L27*$L$24) -> 0.653 | L27: 0.653 | M27: 0.653 | O27: =I27 -> 0.653 | P27: =I50 -> 1.03 | Q27: =(O27/P27) -> 0.6339805825
A28: =L28*K$21*SQRT(4*85*B$20/32.2)/12 -> 3.472526884 | B28: 10.41758065 | C28: 3 | D28: 5.2107 | G28: 3.5 | I28: 0.561 | L28: 0.561 | M28: 0.561 | O28: 0.561 | P28: 0.9 | Q28: 0.6233333333 | T28: 3171 compared to 3075 c-zeta target 110_61_31_a = x 1.179
A29: 3.132083072 | B29: 12.52833229 | C29: 4 | D29: 6.2661 | G29: 3.1 | I29: 0.506 | L29: 0.506 | M29: 0.506 | O29: 0.506 | P29: 0.82 | Q29: 0.6170731707 | T29: 3304 compared to 3075 c-zeta target 110_61_31_a = x 1.288
A30: 2.884487572 | B30: 14.42243786 | C30: 5 | D30: 7.2057 | G30: 2.9 | I30: 0.466 | L30: 0.466 | M30: 0.466 | O30: 0.466 | P30: 0.75 | Q30: 0.6213333333 | T30: (1.179 + 1.288) / 2 = 1.23
A31: 2.042662873 | B31: 20.42662873 | C31: 10 | D31: 10.2078 | G31: 2 | I31: 0.33 | L31: 0.33 | M31: 0.33 | O31: 0.33 | P31: 0.59 | Q31: 0.5593220339
A32: 1.504142661 | B32: 30.08285322 | C32: 20 | D32: 15.0236 | G32: 1.5 | I32: 0.243 | L32: 0.243 | M32: 0.243 | O32: 0.243 | P32: 0.48 | Q32: 0.50625
A33: 1.343205586 | B33: 40.29616758 | C33: 30 | D33: 20.1054 | G33: 1.3 | I33: 0.217 | L33: 0.217 | M33: 0.217 | O33: 0.217 | P33: 0.44 | Q33: 0.4931818182
A34: 1.256547161 | B34: 50.26188644 | C34: 40 | D34: 25.1502 | G34: 1.3 | I34: 0.203 | L34: 0.203 | M34: 0.203 | O34: 0.203 | P34: 0.41 | Q34: 0.4951219512
A35: =L35*K$21*SQRT(4*85*B$20/32.2)/12 -> 1.207028061 | B35: 60.35140306 | C35: 50 | D35: 30.1949 | G35: 1.2 | I35: 0.195 | L35: 0.195 | M35: 0.195 | O35: =I35 -> 0.195 | P35: 0.39 | Q35: 0.5
A36: =L36*K$21*SQRT(4*85*B$20/32.2)/12 -> 1.176078624 | B36: =A36*C36 -> 70.56471742 | C36: 60 | D36: 35.2026 | G36: 1.2 | I36: 0.19 | L36: 0.19 | M36: 0.19 | O36: =I36 -> 0.19 | P36: 0
A37: 1.145129186 | B37: =A37*C37 -> 80.15904304 | C37: 70 | D37: 40.1731 | G37: 1.1 | I37: 0.185 | L37: 0.185 | M37: 0.185 | O37: 0.185 | P37: =I63 -> 0
A43: k.spring | B43: =K43*2.20462*25.4*12 -> 3124.652018 | C43: 3304 | D43: 2018 SXF 350 | F43: 8-22-18 | H43: macro | I43: spr = | K43: 4.65 | L43: 'adjust' value = 1.000
C44: id 9 | D44: 3304 Cody Harris trendline v6 | H44: done | I44: levratio = | K44: 2.52 | L44: 1
C45: ips | D45: co wogas | E45: ro wogas | F45: r-zeta | G45: cDamp | H45: czeta | I45: c-zeta | J45: c-zeta % | K45: r/c | L45: 2
A46: cDamp | B46: co wogas | D46: x 1.003 | E46: r-zeta = .86 | F46: r-zeta = .86 | G46: coeff | I46: 129_75_38_b x 1.003 | J46: act/targ | K46: ratio | M46: extra
A47: coeff | D47: [actual] | E47: [actual] | F47: [actual] | G47: [actual] | H47: [actual] | I47: [target] | J47: [act/targ] | K47: [actual] | L47: 1 | M47: copy | O47: 1 | P47: 3 | Q47: % diff 1/3
A48: [calc] | B48: [calc] | C48: 0 | L48: [adjust]
A49: =L49*K$44*SQRT(4*85*B$43/32.2)/12 -> 49.20637329 | B49: =A49*C49 -> 49.20637329 | C49: 1 | D49: 49 | E49: -33 | F49: 0.87 | G49: 49 | H49: 1.29 | I49: =(L49*$L$47) -> 1.29 | J49: 1 | K49: 0.67 | L49: 1.29 | M49: 1.29 | O49: =I26 -> 0.891 | P49: =I72 -> 1.09 | Q49: =(O49/P49) -> 0.8174311927
A50: =L50*K$44*SQRT(4*85*B$43/32.2)/12 -> 39.28880968 | B50: =A50*C50 -> 78.57761937 | C50: 2 | D50: 79 | E50: -62 | F50: 0.81 | G50: 40 | H50: 1.04 | I50: =(L50*$L$47) -> 1.03 | J50: 1.01 | K50: 0.78 | L50: 1.03 | M50: 1.03 | O50: 0.653 | P50: 0.84 | Q50: =(O50/P50) -> 0.7773809524
A51: 34.33002788 | B51: 102.9900836 | C51: 3 | D51: 103 | E51: -89 | F51: 0.78 | G51: 34 | H51: 0.9 | I51: 0.9 | J51: 1 | K51: 0.86 | L51: 0.9 | M51: 0.9 | O51: 0.561 | P51: 0.72 | Q51: 0.7791666667
A52: 31.27846984 | B52: 125.1138794 | C52: 4 | D52: 125 | E52: -114 | F52: 0.75 | G52: 31 | H52: 0.82 | I52: 0.82 | J52: 1.01 | K52: 0.91 | L52: 0.82 | M52: 0.82 | O52: 0.506 | P52: 0.65 | Q52: 0.7784615385
A53: 28.60835657 | B53: 143.0417828 | C53: 5 | D53: 143 | E53: -138 | F53: 0.72 | G53: 29 | H53: 0.75 | I53: 0.75 | J53: 1 | K53: 0.97 | L53: 0.75 | M53: 0.75 | O53: 0.466 | P53: 0.6 | Q53: 0.7766666667
A54: 22.5052405 | B54: 225.052405 | C54: 10 | D54: 225 | E54: -267 | F54: 0.7 | G54: 23 | H54: 0.59 | I54: 0.59 | J54: 1 | K54: 1.19 | L54: 0.59 | M54: 0.59 | O54: 0.33 | P54: 0.48 | Q54: 0.6875
A55: 18.3093482 | B55: 366.186964 | C55: 20 | D55: 367 | E55: -534 | F55: 0.7 | G55: 18 | H55: 0.48 | I55: 0.48 | J55: 1 | K55: 1.46 | L55: 0.48 | M55: 0.48 | O55: 0.243 | P55: 0.4 | Q55: 0.6075
A56: 16.78356918 | B56: 503.5070755 | C56: 30 | D56: 498 | E56: -801 | F56: 0.7 | G56: 17 | H56: 0.44 | I56: 0.44 | J56: 1 | K56: 1.61 | L56: 0.44 | M56: 0.44 | O56: 0.217 | P56: 0.35 | Q56: 0.62
A57: 15.63923492 | B57: 625.5693969 | C57: 40 | D57: 620 | E57: -1068 | F57: 0.7 | G57: 16 | H57: 0.41 | I57: 0.41 | J57: 1 | K57: 1.72 | L57: 0.41 | M57: 0.41 | O57: 0.203 | P57: 0.32 | Q57: 0.634375
A58: 14.87634541 | B58: 743.8172707 | C58: 50 | D58: 735 | E58: -1335 | F58: 0.7 | G58: 15 | H58: 0.39 | I58: 0.39 | J58: 1 | K58: 1.82 | L58: 0.39 | M58: 0.39 | O58: 0.195 | P58: 0.31 | Q58: 0.6290322581
L64: 1
A66: k.spring | B66: =K66*2.20462*25.4*12 -> 3359.84088 | C66: 3075 | D66: 2017 XCF 350 | F66: 2-17-18 | H66: macro | I66: spr = | K66: 5 | L66: 'adjust' value = 1.000
C67: id 10 | D67: 3075 Mike Kirsch trendline v7 | H67: done | I67: levratio = | K67: 2.52
C68: ips | D68: co wogas | E68: ro wogas | F68: r-zeta | G68: cDamp | H68: czeta | I68: c-zeta | J68: c-zeta % | K68: r/c | L68: 3
A69: cDamp | B69: co wogas | D69: x 1.017 | E69: r-zeta = .86 | F69: r-zeta = .86 | G69: coeff | I69: 107_59_30_c x 1.017 | J69: act/targ | K69: ratio | M69: extra
A70: coeff | D70: [actual] | E70: [actual] | F70: [actual] | G70: [actual] | H70: [actual] | I70: [target] | J70: [act/targ] | K70: [actual] | L70: 1 | M70: copy | O70: 2 | P70: 3 | Q70: % diff 2/3 | S70: 3 | T70: 1 | U70: % diff 3/1
A71: [calc] | B71: [calc] | C71: 0 | L71: [adjust]
A72: =L72*K$67*SQRT(4*85*B$66/32.2)/12 -> 43.11383649 | B72: =A72*C72 -> 43.11383649 | C72: 1 | D72: 43 | E72: -34 | F72: 0.86 | G72: 43 | H72: 1.09 | I72: =(L72*$L$70) -> 1.09 | J72: 1 | K72: 0.79 | L72: 1.09 | M72: 1.09 | O72: =I49 -> 1.29 | P72: =I72 -> 1.09 | Q72: =(O72/P72) -> 1.183486239 | S72: =I72 -> 1.09 | T72: =I26 -> 0.891 | U72: =(S72/T72) -> 1.223344557
A73: =L73*K$67*SQRT(4*85*B$66/32.2)/12 -> 33.22534188 | B73: =A73*C73 -> 66.45068377 | C73: 2 | D73: 67 | E73: -65 | F73: 0.82 | G73: 34 | H73: 0.85 | I73: =(L73*$L$70) -> 0.84 | J73: 1.01 | K73: 0.97 | L73: 0.84 | M73: 0.84 | O73: 1.03 | P73: 0.84 | Q73: =(O73/P73) -> 1.226190476 | S73: =I73 -> 0.84 | T73: 0.653 | U73: =(S73/T73) -> 1.286370597
A74: 28.47886447 | B74: 85.43659341 | C74: 3 | D74: 86 | E74: -93 | F74: 0.78 | G74: 29 | H74: 0.73 | I74: 0.72 | J74: 1.01 | K74: 1.08 | L74: 0.72 | M74: 0.72 | O74: 0.9 | P74: 0.72 | Q74: 1.25 | S74: 0.72 | T74: 0.561 | U74: 1.28342246
A75: 25.71008598 | B75: 102.8403439 | C75: 4 | D75: 103 | E75: -118 | F75: 0.75 | G75: 26 | H75: 0.65 | I75: 0.65 | J75: 1 | K75: 1.15 | L75: 0.65 | M75: 0.65 | O75: 0.82 | P75: 0.65 | Q75: 1.261538462 | S75: 0.65 | T75: 0.506 | U75: 1.28458498
A76: 23.73238706 | B76: 118.6619353 | C76: 5 | D76: 119 | E76: -143 | F76: 0.72 | G76: 24 | H76: 0.6 | I76: 0.6 | J76: 1 | K76: 1.2 | L76: 0.6 | M76: 0.6 | O76: 0.75 | P76: 0.6 | Q76: 1.25 | S76: 0.6 | T76: 0.466 | U76: 1.287553648
A77: 18.98590965 | B77: 189.8590965 | C77: 10 | D77: 191 | E77: -277 | F77: 0.7 | G77: 19 | H77: 0.48 | I77: 0.48 | J77: 1 | K77: 1.45 | L77: 0.48 | M77: 0.48 | O77: 0.59 | P77: 0.48 | Q77: 1.229166667 | S77: 0.48 | T77: 0.33 | U77: 1.454545455
A78: 15.82159137 | B78: 316.4318275 | C78: 20 | D78: 314 | E78: -554 | F78: 0.7 | G78: 16 | H78: 0.4 | I78: 0.4 | J78: 1 | K78: 1.76 | L78: 0.4 | M78: 0.4 | O78: 0.48 | P78: 0.4 | Q78: 1.2 | S78: 0.4 | T78: 0.243 | U78: 1.646090535
A79: 13.84389245 | B79: 415.3167735 | C79: 30 | D79: 418 | E79: -831 | F79: 0.7 | G79: 14 | H79: 0.35 | I79: 0.35 | J79: 1 | K79: 1.99 | L79: 0.35 | M79: 0.35 | O79: 0.44 | P79: 0.35 | Q79: 1.257142857 | S79: 0.35 | T79: 0.217 | U79: 1.612903226
A80: 12.6572731 | B80: 506.2909239 | C80: 40 | D80: 512 | E80: -1108 | F80: 0.7 | G80: 13 | H80: 0.32 | I80: 0.32 | J80: 1 | K80: 2.16 | L80: 0.32 | M80: 0.32 | O80: 0.41 | P80: 0.32 | Q80: 1.28125 | S80: 0.32 | T80: 0.203 | U80: 1.57635468
A81: 12.26173331 | B81: 613.0866657 | C81: 50 | D81: 603 | E81: -1384 | F81: 0.7 | G81: 12 | H81: 0.31 | I81: 0.31 | J81: 1 | K81: 2.3 | L81: 0.31 | M81: 0.31 | O81: 0.39 | P81: 0.31 | Q81: 1.258064516 | S81: 0.31 | T81: 0.195 | U81: 1.58974359
C121: end

Sheet c-zeta_graph_01
A1: 64 | B1: 64 | C1: 48 | D1: 64 | E1: 74 | F1: 74 | G1: 52 | H1: 58 | I1: 114 | J1: 64 | K1: 56 | L1: 56 | M1: 56 | R1: zeta_fkcz_create_targ_chart.xlsm
A2: 3-25-19
A3: This tab is designed to compare 'target to target' as found on openLevFk_crz_create_target.php. | AW3: end
A4: This tab compares two of our current c-zeta targets that are based on soft-aver-stiff as found in fkc target nu. | R4: graph size = 3.5 x 7 at 80% page size . . . . for openLevRatioSh__change_crz_adj_target.php
B5: id 7, _a | R5: (don't change size as top text line doesn't fit
B6: id 3, _b
B9: We built this page so we could create graphs that we can put on website so we could get a visual idea of the differences between the two c-zeta curves.
B11: CONCLUSLION: This graph shows the difference between the three current c-zeta curves. Visuall this doesn't help me much. ADJUST COMMENT ------>
B13: Next we will take 3304s c-zeta curve and create different curves all starting from same c force at 1ips.
B14: See 'c-zeta_create_curves' tab
A16: --> USE CTRL-A to copy and paste to cell c20, C43 from Lev Ratio > [fk cr-zeta - create targ] > [sh cr-zeta - copy targ nu]
A17: --> This page is done.
A20: k.spring | B20: =K20*2.20462*25.4*12 -> 645.089449 | C20: 3210 | D20: 2015 XCF 350 | F20: 5-18-18 | I20: spr = | K20: 0.96 | L20: 'adjust' value = 1.000
I21: levratio = | K21: 0.9
C22: ips | D22: co wogas | E22: reb | F22: r-zeta | G22: cDamp | H22: czeta | I22: c-zeta | J22: c-zeta % | K22: r/c | L22: 1
A23: cDamp | B23: co wogas | G23: coeff | I23: aver b x 1.0 | K23: ratio | M23: extra
A24: coeff | D24: [target] | G24: [target] | I24: [target] | L24: 1 | M24: copy | O24: 1 | P24: 2 | Q24: % diff 1/2
A25: [calc] | B25: [calc] | C25: 0 | L25: [adjust]
A26: =L26*K$21*SQRT(4*85*B$20/32.2)/12 -> 5.515189756 | B26: =A26*C26 -> 5.515189756 | C26: 1 | D26: 2.7582 | G26: 5.5 | I26: 0.891 | L26: 0.891 | M26: 0.891 | O26: =I26 -> 0.891 | P26: =I49 -> 0.891 | Q26: =(O26/P26) -> 1
A27: =L27*K$21*SQRT(4*85*B$20/32.2)/12 -> 4.041996533 | B27: =A27*C27 -> 8.083993066 | C27: 2 | D27: 4.0427 | G27: 4 | I27: 0.653 | L27: 0.653 | M27: 0.653 | O27: =I27 -> 0.653 | P27: =I50 -> 0.653 | Q27: =(O27/P27) -> 1
A28: =L28*K$21*SQRT(4*85*B$20/32.2)/12 -> 3.472526884 | B28: 10.41758065 | C28: 3 | D28: 5.2107 | G28: 3.5 | I28: 0.561 | L28: 0.561 | M28: 0.561 | O28: 0.561 | P28: 0.561 | Q28: 1 | T28: 3171 compared to 3075 c-zeta target 110_61_31_a = x 1.179
A29: 3.132083072 | B29: 12.52833229 | C29: 4 | D29: 6.2661 | G29: 3.1 | I29: 0.506 | L29: 0.506 | M29: 0.506 | O29: 0.506 | P29: 0.506 | Q29: 1 | T29: 3304 compared to 3075 c-zeta target 110_61_31_a = x 1.288
A30: 2.884487572 | B30: 14.42243786 | C30: 5 | D30: 7.2057 | G30: 2.9 | I30: 0.466 | L30: 0.466 | M30: 0.466 | O30: 0.466 | P30: 0.466 | Q30: 1 | T30: (1.179 + 1.288) / 2 = 1.23
A31: 2.042662873 | B31: 20.42662873 | C31: 10 | D31: 10.2078 | G31: 2 | I31: 0.33 | L31: 0.33 | M31: 0.33 | O31: 0.33 | P31: 0.33 | Q31: 1
A32: 1.504142661 | B32: 30.08285322 | C32: 20 | D32: 15.0236 | G32: 1.5 | I32: 0.243 | L32: 0.243 | M32: 0.243 | O32: 0.243 | P32: 0.243 | Q32: 1
A33: 1.343205586 | B33: 40.29616758 | C33: 30 | D33: 20.1054 | G33: 1.3 | I33: 0.217 | L33: 0.217 | M33: 0.217 | O33: 0.217 | P33: 0.217 | Q33: 1
A34: 1.256547161 | B34: 50.26188644 | C34: 40 | D34: 25.1502 | G34: 1.3 | I34: 0.203 | L34: 0.203 | M34: 0.203 | O34: 0.203 | P34: 0.203 | Q34: 1
A35: =L35*K$21*SQRT(4*85*B$20/32.2)/12 -> 1.207028061 | B35: 60.35140306 | C35: 50 | D35: 30.1949 | G35: 1.2 | I35: 0.195 | L35: 0.195 | M35: 0.195 | O35: =I35 -> 0.195 | P35: 0.195 | Q35: 1
A36: =L36*K$21*SQRT(4*85*B$20/32.2)/12 -> 1.176078624 | B36: =A36*C36 -> 70.56471742 | C36: 60 | D36: 35.2026 | G36: 1.2 | I36: 0.19 | L36: 0.19 | M36: 0.19 | O36: =I36 -> 0.19 | P36: =I59 -> 0.19 | Q36: =(O36/P36) -> 1
A37: 1.145129186 | B37: =A37*C37 -> 80.15904304 | C37: 70 | D37: 40.1731 | G37: 1.1 | I37: 0.185 | L37: 0.185 | M37: 0.185 | O37: 0.185 | P37: =I63 -> 0
A43: k.spring | B43: =K43*2.20462*25.4*12 -> 645.089449 | C43: 3210 | D43: 2015 XCF 350 | F43: 5-18-18 | I43: spr = | K43: 0.96 | L43: 'adjust' value = 1.000
I44: levratio = | K44: 0.9
C45: ips | D45: co wogas | E45: reb | F45: r-zeta | G45: cDamp | H45: czeta | I45: c-zeta | J45: c-zeta % | K45: r/c | L45: 2
A46: cDamp | B46: co wogas | G46: coeff | I46: aver b x 1.0 | K46: ratio | M46: extra
A47: coeff | D47: [target] | G47: [target] | I47: [target] | L47: 1 | M47: copy | O47: 1 | P47: 2 | Q47: % diff 1/2
A48: [calc] | B48: [calc] | C48: 0 | L48: [adjust]
A49: =L49*K$21*SQRT(4*85*B$20/32.2)/12 -> 5.515189756 | B49: =A49*C49 -> 5.515189756 | C49: 1 | D49: 2.7582 | G49: 5.5 | I49: 0.891 | L49: 0.891 | M49: 0.891 | O49: =I49 -> 0.891 | P49: =I72 -> 0 | Q49: =(O49/P49) -> 
A50: =L50*K$21*SQRT(4*85*B$20/32.2)/12 -> 4.041996533 | B50: =A50*C50 -> 8.083993066 | C50: 2 | D50: 4.0427 | G50: 4 | I50: 0.653 | L50: 0.653 | M50: 0.653 | O50: =I50 -> 0.653 | P50: =I73 -> 0 | Q50: =(O50/P50) -> 
A51: =L51*K$21*SQRT(4*85*B$20/32.2)/12 -> 3.472526884 | B51: 10.41758065 | C51: 3 | D51: 5.2107 | G51: 3.5 | I51: 0.561 | L51: 0.561 | M51: 0.561 | O51: 0.561 | P51: 0
A52: 3.132083072 | B52: 12.52833229 | C52: 4 | D52: 6.2661 | G52: 3.1 | I52: 0.506 | L52: 0.506 | M52: 0.506 | O52: 0.506 | P52: 0
A53: 2.884487572 | B53: 14.42243786 | C53: 5 | D53: 7.2057 | G53: 2.9 | I53: 0.466 | L53: 0.466 | M53: 0.466 | O53: 0.466 | P53: 0
A54: 2.042662873 | B54: 20.42662873 | C54: 10 | D54: 10.2078 | G54: 2 | I54: 0.33 | L54: 0.33 | M54: 0.33 | O54: 0.33 | P54: 0
A55: 1.504142661 | B55: 30.08285322 | C55: 20 | D55: 15.0236 | G55: 1.5 | I55: 0.243 | L55: 0.243 | M55: 0.243 | O55: 0.243 | P55: 0
A56: 1.343205586 | B56: 40.29616758 | C56: 30 | D56: 20.1054 | G56: 1.3 | I56: 0.217 | L56: 0.217 | M56: 0.217 | O56: 0.217 | P56: 0
A57: 1.256547161 | B57: 50.26188644 | C57: 40 | D57: 25.1502 | G57: 1.3 | I57: 0.203 | L57: 0.203 | M57: 0.203 | O57: 0.203 | P57: 0
A58: =L58*K$21*SQRT(4*85*B$20/32.2)/12 -> 1.207028061 | B58: 60.35140306 | C58: 50 | D58: 30.1949 | G58: 1.2 | I58: 0.195 | L58: 0.195 | M58: 0.195 | O58: =I58 -> 0.195 | P58: 0
A59: =L59*K$21*SQRT(4*85*B$20/32.2)/12 -> 1.176078624 | B59: =A59*C59 -> 70.56471742 | C59: 60 | D59: 35.2026 | G59: 1.2 | I59: 0.19 | L59: 0.19 | M59: 0.19 | O59: =I59 -> 0.19 | P59: 0
A60: 1.145129186 | B60: =A60*C60 -> 80.15904304 | C60: 70 | D60: 40.1731 | G60: 1.1 | I60: 0.185 | L60: 0.185 | M60: 0.185 | O60: 0.185 | P60: =I86 -> 0
C121: end

Sheet c-zeta_graph_02
A1: 64 | B1: 64 | C1: 48 | D1: 64 | E1: 74 | F1: 74 | G1: 52 | H1: 58 | I1: 114 | J1: 64 | K1: 56 | L1: 56 | M1: 56 | R1: zeta_shcrz_adj_targ_chart.xlsm
A2: 9-10-18
A3: This tab is designed to compare 'target to target' as found on openLevSh_crz_adj_target.php.
A4: Use this page to compare two c-zeta targets.
B5: just pick any two and compare
A9: This is copied from shock c-zeta. Save in case we want to us it.
A20: k.spring | B20: =K20*2.20462*25.4*12 -> 2822.266339 | C20: 3171 | D20: 2016 SXF 250 | F20: 4-25-18 | H20: macro | I20: spr = | K20: 4.2
C21: id 8 | D21: 3171 Hunter Hargis trendline v5 | H21: done | I21: levratio = | K21: 2.46
C22: ips | D22: co wogas | E22: ro wogas | F22: r-zeta | G22: cDamp | H22: czeta | I22: c-zeta | J22: c-zeta % | K22: r/c | L22: 1
A23: cDamp | B23: co wogas | D23: x 1 | E23: r-zeta = 1.00 | F23: r-zeta = 1.00 | G23: coeff | I23: 135_76_36_a x 1 | J23: act/targ | K23: ratio
A24: coeff | B24: target | D24: [actual] | E24: [actual] | F24: [actual] | G24: [actual] | H24: [actual] | I24: [target] | J24: [act/targ] | K24: [actual] | L24: 1
A25: [calc] | B25: [calc] | C25: 0
A26: =H26*K$21*SQRT(4*85*B$20/32.2)/12 -> 47.81010866 | B26: =A26*C26 -> 47.81010866 | C26: 1 | D26: 47.81 | E26: -35 | F26: 0.989 | G26: 48 | H26: 1.351 | I26: =(L26*$L$24) -> 1.351 | J26: 1 | K26: 0.73 | L26: 1.351
A27: =H27*K$21*SQRT(4*85*B$20/32.2)/12 -> 36.20262114 | B27: =A27*C27 -> 72.40524228 | C27: 2 | D27: 72.33 | E27: -65 | F27: 0.918 | G27: 36 | H27: 1.023 | I27: =(L27*$L$24) -> 1.022 | J27: 1 | K27: 0.9 | L27: 1.022
A28: 31.28359442 | B28: 93.85078325 | C28: 3 | D28: 93.96 | E28: -89 | F28: 0.839 | G28: 31 | H28: 0.884 | I28: 0.885 | J28: 1 | K28: 0.95 | L28: 0.885
A29: 28.59405463 | B29: 114.3762185 | C29: 4 | D29: 114.23 | E29: -111 | F29: 0.786 | G29: 29 | H29: 0.808 | I29: 0.807 | J29: 1 | K29: 0.97 | L29: 0.807
A30: 26.78923187 | B30: 133.9461594 | C30: 5 | D30: 133.95 | E30: -131 | F30: 0.74 | G30: 27 | H30: 0.757 | I30: 0.757 | J30: 1 | K30: 0.98 | L30: 0.757
A31: 21.09165415 | B31: 210.9165415 | C31: 10 | D31: 211.27 | E31: -248 | F31: 0.701 | G31: 21 | H31: 0.596 | I31: 0.597 | J31: 1 | K31: 1.17 | L31: 0.597
A32: 16.8096237 | B32: 336.1924739 | C32: 20 | D32: 336.19 | E32: -495 | F32: 0.701 | G32: 17 | H32: 0.475 | I32: 0.475 | J32: 1 | K32: 1.47 | L32: 0.475
A33: 15.00480094 | B33: 450.1440283 | C33: 30 | D33: 449.08 | E33: -743 | F33: 0.701 | G33: 15 | H33: 0.424 | I33: 0.423 | J33: 1 | K33: 1.65 | L33: 0.423
A34: 13.80158577 | B34: 552.0634309 | C34: 40 | D34: 550.65 | E34: -991 | F34: 0.701 | G34: 14 | H34: 0.39 | I34: 0.389 | J34: 1 | K34: 1.8 | L34: 0.389
A35: 12.81070269 | B35: 640.5351346 | C35: 50 | D35: 640.54 | E35: -1239 | F35: 0.701 | G35: 13 | H35: 0.362 | I35: 0.362 | J35: 1 | K35: 1.93 | L35: 0.362
A40: k.spring | B40: =K40*2.20462*25.4*12 -> 3124.652018 | C40: 3304 | D40: 2018 SXF 350 | F40: 8-22-18 | H40: macro | I40: spr = | K40: 4.65
C41: id 9 | D41: 3304 Cody Harris trendline v6 | H41: done | I41: levratio = | K41: 2.46
C42: ips | D42: co wogas | E42: ro wogas | F42: r-zeta | G42: cDamp | H42: czeta | I42: c-zeta | J42: c-zeta % | K42: r/c | L42: 2 | M42: c-zeta | N42: c-zeta
A43: cDamp | B43: co wogas | D43: x 1 | E43: r-zeta = 1.00 | F43: r-zeta = 1.00 | G43: coeff | I43: 132_77_39_b x 1 | J43: act/targ | K43: ratio | M43: actual | N43: target
A44: coeff | B44: target | D44: [actual] | E44: [actual] | F44: [actual] | G44: [actual] | H44: [actual] | I44: [target] | J44: [act/targ] | K44: [actual] | L44: 1 | M44: % | N44: %
A45: [calc] | B45: [calc] | C45: 0
A46: =I46*K$41*SQRT(4*85*B$40/32.2)/12 -> 49.04017236 | B46: =A46*C46 -> 49.04017236 | C46: 1 | D46: 49.04 | E46: -37 | F46: 0.994 | G46: 49 | H46: 1.316 | I46: =(L46*$L$44) -> 1.317 | J46: 1 | K46: 0.75 | L46: 1.317 | M46: =H26/H46 -> 1.026595745 | N46: =I26/I46 -> 1.025816249
A47: =I47*K$41*SQRT(4*85*B$40/32.2)/12 -> 39.13532358 | B47: =A47*C47 -> 78.27064716 | C47: 2 | D47: 78.27 | E47: -68 | F47: 0.913 | G47: 39 | H47: 1.05 | I47: =(L47*$L$44) -> 1.051 | J47: 1 | K47: 0.87 | L47: 1.051 | M47: =H27/H47 -> 0.9742857143 | N47: =I27/I47 -> 0.9724072312
A48: 34.25737173 | B48: 102.7721152 | C48: 3 | D48: 102.77 | E48: -94 | F48: 0.841 | G48: 34 | H48: 0.921 | I48: 0.92 | J48: 1 | K48: 0.91 | L48: 0.92 | M48: 0.9598262758 | N48: 0.9619565217
A49: 31.01781593 | B49: 124.0712637 | C49: 4 | D49: 124.07 | E49: -117 | F49: 0.787 | G49: 31 | H49: 0.833 | I49: 0.833 | J49: 1 | K49: 0.94 | L49: 0.833 | M49: 0.9699879952 | N49: 0.968787515
A50: 28.59745814 | B50: 142.9872907 | C50: 5 | D50: 142.99 | E50: -138 | F50: 0.741 | G50: 29 | H50: 0.768 | I50: 0.768 | J50: 1 | K50: 0.97 | L50: 0.768 | M50: 0.9856770833 | N50: 0.9856770833
A51: 22.41623672 | B51: 224.1623672 | C51: 10 | D51: 224.16 | E51: -261 | F51: 0.701 | G51: 22 | H51: 0.602 | I51: 0.602 | J51: 1 | K51: 1.16 | L51: 0.602 | M51: 0.9900332226 | N51: 0.9916943522
A52: 18.28301035 | B52: 365.660207 | C52: 20 | D52: 365.66 | E52: -521 | F52: 0.701 | G52: 18 | H52: 0.491 | I52: 0.491 | J52: 1 | K52: 1.42 | L52: 0.491 | M52: 0.967413442 | N52: 0.967413442
A53: 16.53290549 | B53: 495.9871647 | C53: 30 | D53: 495.99 | E53: -782 | F53: 0.701 | G53: 17 | H53: 0.443 | I53: 0.444 | J53: 1 | K53: 1.58 | L53: 0.444 | M53: 0.9571106095 | N53: 0.9527027027
A54: 15.45305355 | B54: 618.1221422 | C54: 40 | D54: 618.12 | E54: -1043 | F54: 0.701 | G54: 16 | H54: 0.416 | I54: 0.415 | J54: 1 | K54: 1.69 | L54: 0.415 | M54: 0.9375 | N54: 0.9373493976
A55: 14.63385553 | B55: 731.6927767 | C55: 50 | D55: 731.69 | E55: -1303 | F55: 0.701 | G55: 15 | H55: 0.392 | I55: 0.393 | J55: 1 | K55: 1.78 | L55: 0.393 | M55: 0.9234693878 | N55: 0.9211195929
C115: end

Sheet c-zeta_graph_03
A1: 64 | B1: 64 | C1: 48 | D1: 64 | E1: 74 | F1: 74 | G1: 52 | H1: 58 | I1: 114 | J1: 64 | K1: 56 | L1: 56 | M1: 56 | R1: zeta_shcrz_adj_targ_chart.xlsm
A2: 9-10-18
A3: This tab is designed to compare 'target to target' as found on openLevSh_crz_adj_target.php.
A4: Use this page to compare two c-zeta targets.
B5: just pick any two and compare
B7: On _03 we will compare the same stack at with different factor numbers to see if co wogas has linear increase.
A9: This is copied from shock c-zeta. Save in case we want to us it.
A20: k.spring | B20: =K20*2.20462*25.4*12 -> 2990.258383 | C20: 3205 | D20: 2018 SXF 250 | F20: 5-17-18 | H20: macro | I20: spr = | K20: 4.45
C21: id 11 | D21: 3171 and 3304 aver | H21: done | I21: levratio = | K21: 2.46
C22: ips | D22: co wogas | E22: ro wogas | F22: r-zeta | G22: cDamp | H22: czeta | I22: c-zeta | J22: c-zeta % | K22: r/c | L22: 1
A23: cDamp | B23: co wogas | D23: x 1.2 | E23: r-zeta = 1.00 | F23: r-zeta = 1.00 | G23: coeff | I23: 138_77_38_e x 1.2 | J23: act/targ | K23: ratio
A24: coeff | B24: target | D24: [actual] | E24: [actual] | F24: [actual] | G24: [actual] | H24: [actual] | I24: [target] | J24: [act/targ] | K24: [actual] | L24: 1
A25: [calc] | B25: [calc] | C25: 0
A26: =H26*K$21*SQRT(4*85*B$20/32.2)/12 -> 60.3954565 | B26: =A26*C26 -> 60.3954565 | C26: 1 | D26: 60.41 | E26: -36 | F26: 0.988 | G26: 60 | H26: 1.658 | I26: =(L26*$L$24) -> 1.658 | J26: 1 | K26: 0.6 | L26: 1.658
A27: =H27*K$21*SQRT(4*85*B$20/32.2)/12 -> 46.51688658 | B27: =A27*C27 -> 93.03377316 | C27: 2 | D27: 92.93 | E27: -67 | F27: 0.92 | G27: 47 | H27: 1.277 | I27: =(L27*$L$24) -> 1.276 | J27: 1 | K27: 0.72 | L27: 1.276
A28: 40.10578867 | B28: 120.317366 | C28: 3 | D28: 120.25 | E28: -92 | F28: 0.843 | G28: 40 | H28: 1.101 | I28: 1.1 | J28: 1 | K28: 0.77 | L28: 1.1
A29: 36.20813255 | B29: 144.8325302 | C29: 4 | D29: 144.6 | E29: -114 | F29: 0.782 | G29: 36 | H29: 0.994 | I29: 0.992 | J29: 1 | K29: 0.79 | L29: 0.992
A30: 33.51255729 | B30: 167.5627864 | C30: 5 | D30: 167.42 | E30: -135 | F30: 0.741 | G30: 34 | H30: 0.92 | I30: 0.919 | J30: 1 | K30: 0.81 | L30: 0.919
A31: 26.40935221 | B31: 264.0935221 | C31: 10 | D31: 264.02 | E31: -255 | F31: 0.7 | G31: 26 | H31: 0.725 | I31: 0.725 | J31: 1 | K31: 0.97 | L31: 0.725
A32: 21.20033515 | B32: 424.0067031 | C32: 20 | D32: 424.01 | E32: -510 | F32: 0.7 | G32: 21 | H32: 0.582 | I32: 0.582 | J32: 1 | K32: 1.2 | L32: 0.582
A33: 19.01473359 | B33: 570.4420077 | C33: 30 | D33: 570.44 | E33: -765 | F33: 0.7 | G33: 19 | H33: 0.522 | I33: 0.522 | J33: 1 | K33: 1.34 | L33: 0.522
A34: 17.59409258 | B34: 703.763703 | C34: 40 | D34: 704.64 | E34: -1020 | F34: 0.7 | G34: 18 | H34: 0.483 | I34: 0.484 | J34: 1 | K34: 1.45 | L34: 0.484
A35: 16.50129179 | B35: 825.0645897 | C35: 50 | D35: 826.16 | E35: -1275 | F35: 0.7 | G35: 17 | H35: 0.453 | I35: 0.454 | J35: 1 | K35: 1.54 | L35: 0.454
A40: k.spring | B40: =K40*2.20462*25.4*12 -> 2990.258383 | C40: 3205 | D40: 2018 SXF 250 | F40: 5-17-18 | H40: macro | I40: spr = | K40: 4.45
C41: id 11 | D41: 3171 and 3304 aver | H41: done | I41: levratio = | K41: 2.46
C42: ips | D42: co wogas | E42: ro wogas | F42: r-zeta | G42: cDamp | H42: czeta | I42: c-zeta | J42: c-zeta % | K42: r/c | L42: 2 | M42: c-zeta | N42: c-zeta | O42: co wogas
A43: cDamp | B43: co wogas | D43: x 1 | E43: r-zeta = 1.00 | F43: r-zeta = 1.00 | G43: coeff | I43: 138_77_38_e x 1 | J43: act/targ | K43: ratio | M43: actual | N43: target
A44: coeff | B44: target | D44: [actual] | E44: [actual] | F44: [actual] | G44: [actual] | H44: [actual] | I44: [target] | J44: [act/targ] | K44: [actual] | L44: 1 | M44: % | N44: % | O44: %
A45: [calc] | B45: [calc] | C45: 0
A46: =I46*K$41*SQRT(4*85*B$40/32.2)/12 -> 50.34168932 | B46: =A46*C46 -> 50.34168932 | C46: 1 | D46: 50.34 | E46: -36 | F46: 0.988 | G46: 50 | H46: 1.381 | I46: =(L46*$L$44) -> 1.382 | J46: 1 | K46: 0.72 | L46: 1.382 | M46: =H26/H46 -> 1.20057929 | N46: =I26/I46 -> 1.199710564 | O46: =D26/D46 -> 1.20003973
A47: =I47*K$41*SQRT(4*85*B$40/32.2)/12 -> 38.72157434 | B47: =A47*C47 -> 77.44314869 | C47: 2 | D47: 77.44 | E47: -67 | F47: 0.92 | G47: 39 | H47: 1.062 | I47: =(L47*$L$44) -> 1.063 | J47: 1 | K47: 0.87 | L47: 1.063 | M47: =H27/H47 -> 1.202448211 | N47: 1.200376294 | O47: =D27/D47 -> 1.200025826
A48: 33.40327721 | B48: 100.2098316 | C48: 3 | D48: 100.21 | E48: -92 | F48: 0.843 | G48: 33 | H48: 0.917 | I48: 0.917 | J48: 1 | K48: 0.92 | L48: 0.917 | M48: 1.200654308 | N48: 1.199563795 | O48: 1.199980042
A49: 30.12487487 | B49: 120.4994995 | C49: 4 | D49: 120.5 | E49: -114 | F49: 0.782 | G49: 30 | H49: 0.826 | I49: 0.827 | J49: 1 | K49: 0.95 | L49: 0.827 | M49: 1.203389831 | N49: 1.199516324 | O49: 1.2
A50: 27.90284661 | B50: 139.5142331 | C50: 5 | D50: 139.51 | E50: -135 | F50: 0.741 | G50: 28 | H50: 0.766 | I50: 0.766 | J50: 1 | K50: 0.97 | L50: 0.766 | M50: 1.201044386 | N50: 1.199738903 | O50: 1.200057344
A51: 22.00172239 | B51: 220.0172239 | C51: 10 | D51: 220.02 | E51: -255 | F51: 0.7 | G51: 22 | H51: 0.604 | I51: 0.604 | J51: 1 | K51: 1.16 | L51: 0.604 | M51: 1.200331126 | N51: 1.200331126 | O51: 1.19998182
A52: 17.66694596 | B52: 353.3389192 | C52: 20 | D52: 353.34 | E52: -510 | F52: 0.7 | G52: 18 | H52: 0.486 | I52: 0.485 | J52: 1 | K52: 1.44 | L52: 0.485 | M52: 1.197530864 | N52: 1.2 | O52: 1.20000566
A53: 15.84561133 | B53: 475.3683398 | C53: 30 | D53: 475.37 | E53: -765 | F53: 0.7 | G53: 16 | H53: 0.434 | I53: 0.435 | J53: 1 | K53: 1.61 | L53: 0.435 | M53: 1.202764977 | N53: 1.2 | O53: 1.199991586
A54: 14.67995716 | B54: 587.1982864 | C54: 40 | D54: 587.2 | E54: -1020 | F54: 0.7 | G54: 15 | H54: 0.404 | I54: 0.403 | J54: 1 | K54: 1.74 | L54: 0.403 | M54: 1.195544554 | N54: 1.200992556 | O54: 1.2
A55: 13.76928984 | B55: 688.4644921 | C55: 50 | D55: 688.46 | E55: -1275 | F55: 0.7 | G55: 14 | H55: 0.379 | I55: 0.378 | J55: 1 | K55: 1.85 | L55: 0.378 | M55: 1.19525066 | N55: 1.201058201 | O55: 1.20001162
C115: end

Sheet c-zeta_create_curves
A1: 64 | B1: 64 | C1: 48 | D1: 64 | E1: 74 | F1: 74 | G1: 52 | H1: 58 | I1: 114 | J1: 64 | K1: 56 | L1: 56 | M1: 56 | R1: zeta_shcrz_adj_targ_chart.xlsm
A2: 9-10-18
A3: This tab is copied from c-zeta_graph_01.
A5: This is copied from shock c-zeta. Save in case we want to us it.
B9: We want to create different c-zeta curves, all starting with the same c force at 1ips as 3304s. Consider increasing force at 50ips by 1.075.
B11: This does not work here. We almost have to do this on zeta_backwards.xlsx and increase c force, then adjust the ca force and ca% accordingly.
B13: At this time we will not use this page. Save in case we want to reexplore the idea.
B14: See zeta_backwards_save_9-10-18_with_createcurve.xlsx where we tried but there is no simple way to do this.
B15: We will continue creating c-zeta curves based on good tests. To produce different curves, find good tests with different curves that work.
A20: k.spring | B20: =K20*2.20462*25.4*12 -> 2822.266339 | C20: 3171 | D20: 2016 SXF 250 | F20: 4-25-18 | H20: macro | I20: spr = | K20: 4.2
C21: id 5 | D21: 3171 Hunter Hargis trendline v5 | H21: done | I21: levratio = | K21: 2.46
C22: ips | D22: co wogas | E22: ro wogas | F22: r-zeta | G22: cDamp | H22: czeta | I22: c-zeta | J22: c-zeta % | K22: r/c | L22: 1
A23: cDamp | B23: co wogas | D23: x 1 | E23: r-zeta | F23: r-zeta | G23: coeff | H23: actual | I23: 139_76_36a | J23: act/targ | K23: ratio | M23: extra
A24: coeff | E24: = 1.00 | F24: = 1.00 | I24: x 1 | L24: 0.846 | M24: copy
A25: [calc] | B25: [calc] | C25: 0 | L25: [adjust]
A26: =L26*K$21*SQRT(4*85*B$20/32.2)/12 -> 49.15487856 | B26: =A26*C26 -> 49.15487856 | C26: 1 | D26: 49 | E26: -35 | F26: 0.989 | G26: 49 | H26: 1.385 | I26: =(L26*$L$24) -> 1.175094 | J26: 1 | K26: 0.71 | L26: 1.389 | M26: 1.389
A27: =L27*K$21*SQRT(4*85*B$20/32.2)/12 -> 36.59189664 | B27: =A27*C27 -> 73.18379327 | C27: 2 | D27: 73 | E27: -65 | F27: 0.918 | G27: 37 | H27: 1.031 | I27: =(L27*$L$24) -> 0.874764 | J27: 1 | K27: 0.89 | L27: 1.034 | M27: 1.034
A28: 31.74364728 | B28: 95.23094183 | C28: 3 | D28: 95 | E28: -89 | F28: 0.839 | G28: 32 | H28: 0.896 | I28: 0.758862 | J28: 1 | K28: 0.94 | L28: 0.897 | M28: 0.897
A29: 28.94794144 | B29: 115.7917658 | C29: 4 | D29: 116 | E29: -111 | F29: 0.786 | G29: 29 | H29: 0.819 | I29: 0.692028 | J29: 1 | K29: 0.96 | L29: 0.818 | M29: 0.818
A30: 27.00156396 | B30: 135.0078198 | C30: 5 | D30: 135 | E30: -131 | F30: 0.74 | G30: 27 | H30: 0.763 | I30: 0.645498 | J30: 1 | K30: 0.97 | L30: 0.763 | M30: 0.763
A31: 21.23320888 | B31: 212.3320888 | C31: 10 | D31: 212 | E31: -248 | F31: 0.701 | G31: 21 | H31: 0.599 | I31: 0.5076 | J31: 1 | K31: 1.17 | L31: 0.6 | M31: 0.6
A32: 16.95117842 | B32: 339.0235685 | C32: 20 | D32: 339 | E32: -495 | F32: 0.701 | G32: 17 | H32: 0.48 | I32: 0.405234 | J32: 1 | K32: 1.46 | L32: 0.479 | M32: 0.479
A33: 15.04018962 | B33: 451.2056887 | C33: 30 | D33: 451 | E33: -743 | F33: 0.701 | G33: 15 | H33: 0.424 | I33: 0.35955 | J33: 1 | K33: 1.65 | L33: 0.425 | M33: 0.425
A34: 13.76619709 | B34: 550.6478836 | C34: 40 | D34: 551 | E34: -991 | F34: 0.701 | G34: 14 | H34: 0.39 | I34: 0.329094 | J34: 1 | K34: 1.8 | L34: 0.389 | M34: 0.389
A35: 12.84609137 | B35: 642.3045686 | C35: 50 | D35: 642 | E35: -1239 | F35: 0.701 | G35: 13 | H35: 0.362 | I35: 0.307098 | J35: 1 | K35: 1.93 | L35: 0.363 | M35: 0.363
A40: k.spring | B40: =K40*2.20462*25.4*12 -> 3124.652018 | C40: 3304 | D40: 2018 SXF 350 | F40: 8-22-18 | H40: macro | I40: spr = | K40: 4.65
C41: id 9 | D41: 3304 Cody Harris trendline v6 | H41: done | I41: levratio = | K41: 2.46
C42: ips | D42: co wogas | E42: ro wogas | F42: r-zeta | G42: cDamp | H42: czeta | I42: c-zeta | J42: c-zeta % | K42: r/c | L42: 2
A43: cDamp | B43: co wogas | D43: x 1 | E43: r-zeta | F43: r-zeta | G43: coeff | H43: actual | I43: 137_78_39b | J43: act/targ | K43: ratio | M43: extra
A44: coeff | E44: = 1.00 | F44: = 1.00 | I44: x 1 | L44: 1 | M44: copy
A45: [calc] | B45: [calc] | C45: 0 | L45: [adjust]
A46: =L46*K$41*SQRT(4*85*B$40/32.2)/12 -> 51.19987623 | B46: =A46*C46 -> 51.19987623 | C46: 1 | D46: 51 | E46: -37 | F46: 0.994 | G46: 51 | H46: 1.37 | I46: =(L46*$L$44) -> 1.375 | J46: 1 | K46: 0.73 | L46: 1.375 | M46: 1.375
A47: =L47*K$41*SQRT(4*85*B$40/32.2)/12 -> 40.14070297 | B47: =A47*C47 -> 80.28140593 | C47: 2 | D47: 80 | E47: -68 | F47: 0.913 | G47: 40 | H47: 1.074 | I47: =(L47*$L$44) -> 1.078 | J47: 1 | K47: 0.85 | L47: 1.078 | M47: 1.078
A48: 34.96486093 | B48: 104.8945828 | C48: 3 | D48: 105 | E48: -94 | F48: 0.841 | G48: 35 | H48: 0.94 | I48: 0.939 | J48: 1 | K48: 0.9 | L48: 0.939 | M48: 0.939
A49: 31.57636003 | B49: 126.3054401 | C49: 4 | D49: 126 | E49: -117 | F49: 0.787 | G49: 32 | H49: 0.846 | I49: 0.848 | J49: 1 | K49: 0.93 | L49: 0.848 | M49: 0.848
A50: 29.00705715 | B50: 145.0352858 | C50: 5 | D50: 145 | E50: -138 | F50: 0.741 | G50: 29 | H50: 0.779 | I50: 0.779 | J50: 1 | K50: 0.95 | L50: 0.779 | M50: 0.779
A51: 22.60241809 | B51: 226.0241809 | C51: 10 | D51: 226 | E51: -261 | F51: 0.701 | G51: 23 | H51: 0.607 | I51: 0.607 | J51: 1 | K51: 1.15 | L51: 0.607 | M51: 0.607
A52: 18.3574829 | B52: 367.1496579 | C52: 20 | D52: 367 | E52: -521 | F52: 0.701 | G52: 18 | H52: 0.494 | I52: 0.493 | J52: 1 | K52: 1.42 | L52: 0.493 | M52: 0.493
A53: 16.60737804 | B53: 498.2213411 | C53: 30 | D53: 498 | E53: -782 | F53: 0.701 | G53: 17 | H53: 0.446 | I53: 0.446 | J53: 1 | K53: 1.57 | L53: 0.446 | M53: 0.446
A54: 15.5275261 | B54: 621.1010441 | C54: 40 | D54: 621 | E54: -1043 | F54: 0.701 | G54: 16 | H54: 0.416 | I54: 0.417 | J54: 1 | K54: 1.68 | L54: 0.417 | M54: 0.417
A55: 14.67109181 | B55: 733.5545904 | C55: 50 | D55: 734 | E55: -1303 | F55: 0.701 | G55: 15 | H55: 0.395 | I55: 0.394 | J55: 1 | K55: 1.78 | L55: 0.394 | M55: 0.394
A60: k.spring | B60: =K60*2.20462*25.4*12 -> 3359.84088 | C60: 3075 | D60: 2017 XCF 350 | F60: 2-17-18 | H60: macro | I60: spr = | K60: 5
C61: id 7 | D61: 3075 Mike Kirsch trendline v3 | H61: done | I61: levratio = | K61: 2.46
C62: ips | D62: co wogas | E62: ro wogas | F62: r-zeta | G62: cDamp | H62: czeta | I62: c-zeta | J62: c-zeta % | K62: r/c | L62: 3
A63: cDamp | B63: co wogas | D63: x 1 | E63: r-zeta | F63: r-zeta | G63: coeff | H63: actual | I63: 113_61_31a | J63: act/targ | K63: ratio | M63: extra
A64: coeff | E64: = 1.00 | F64: = 1.00 | I64: x 1 | L64: 1 | M64: copy
A65: [calc] | B65: [calc] | C65: 0 | L65: [adjust]
A66: =L66*K$61*SQRT(4*85*B$60/32.2)/12 -> 43.63180526 | B66: =A66*C66 -> 43.63180526 | C66: 1 | D66: 44 | E66: -39 | F66: 1.01 | G66: 44 | H66: 1.14 | I66: =(L66*$L$64) -> 1.13 | J66: 1.01 | K66: 0.89 | L66: 1.13 | M66: 1.13
A67: =L67*K$61*SQRT(4*85*B$60/32.2)/12 -> 33.05205779 | B67: =A67*C67 -> 66.10411557 | C67: 2 | D67: 66 | E67: -71 | F67: 0.919 | G67: 33 | H67: 0.855 | I67: =(L67*$L$64) -> 0.856 | J67: 1 | K67: 1.08 | L67: 0.856 | M67: 0.856
A68: 28.45720396 | B68: 85.37161188 | C68: 3 | D68: 85 | E68: -98 | F68: 0.847 | G68: 28 | H68: 0.733 | I68: 0.737 | J68: 0.99 | K68: 1.15 | L68: 0.737 | M68: 0.737
A69: 25.5998999 | B69: 102.3995996 | C69: 4 | D69: 102 | E69: -121 | F69: 0.785 | G69: 26 | H69: 0.66 | I69: 0.663 | J69: 1 | K69: 1.19 | L69: 0.663 | M69: 0.663
A70: 23.55345239 | B70: 117.767262 | C70: 5 | D70: 118 | E70: -143 | F70: 0.741 | G70: 24 | H70: 0.611 | I70: 0.61 | J70: 1 | K70: 1.21 | L70: 0.61 | M70: 0.61
A71: 18.8041497 | B71: 188.041497 | C71: 10 | D71: 188 | E71: -270 | F71: 0.699 | G71: 19 | H71: 0.487 | I71: 0.487 | J71: 1 | K71: 1.44 | L71: 0.487 | M71: 0.487
A72: 15.48349903 | B72: 309.6699807 | C72: 20 | D72: 310 | E72: -541 | F72: 0.702 | G72: 16 | H72: 0.401 | I72: 0.401 | J72: 1 | K72: 1.75 | L72: 0.401 | M72: 0.401
A73: 13.70733705 | B73: 411.2201115 | C73: 30 | D73: 411 | E73: -811 | F73: 0.699 | G73: 14 | H73: 0.355 | I73: 0.355 | J73: 1 | K73: 1.97 | L73: 0.355 | M73: 0.355
A74: 12.58758276 | B74: 503.5033102 | C74: 40 | D74: 504 | E74: -1081 | F74: 0.699 | G74: 13 | H74: 0.326 | I74: 0.326 | J74: 1 | K74: 2.14 | L74: 0.326 | M74: 0.326
A75: 11.89256285 | B75: 594.6281424 | C75: 50 | D75: 595 | E75: -1351 | F75: 0.699 | G75: 12 | H75: 0.308 | I75: 0.308 | J75: 1 | K75: 2.27 | L75: 0.308 | M75: 0.308
C115: end

Sheet c-zeta_graph_tweak
C1: 48 | D1: 64 | E1: 64 | F1: 64 | G1: 52 | H1: 52 | I1: 78 | J1: 64 | K1: 56 | L1: 56 | R1: zeta_shcrz_adj_targ_chart.xlsm
A2: 9-10-18
A3: This tab is copied from c-zeta_graph_01.
A5: This is copied from shock c-zeta. Save in case we want to us it.
A9: We hand tweaked the numbers between 2 and 3 on this (2) copy | I9: 9-8-18, we compared these numbers
A10: to see if there was room for improvement. -----------------> | I10: with the ones we produced from
I11: zeta_backwards.xlsx and there is only
I12: 3-4% difference at 1-5 ips. Who's
I13: to say the current numbers aren't right.
I14: So we will just keep using the numbers
I15: we create from zeta_backwards.xlsx
I16: and not change to these numbers.
A20: k.spring | B20: =K20*2.20462*25.4*12 -> 2822.266339 | C20: 3171 | D20: 2016 SXF 250 | F20: 4-25-18 | H20: macro | I20: spr = | K20: 4.2
C21: id 5 | D21: 3171 Hunter Hargis trendline v5 | H21: done | I21: levratio = | K21: 2.46
C22: ips | D22: co wogas | E22: ro wogas | F22: r-zeta | G22: cDamp | H22: czeta | I22: c-zeta | J22: c-zeta % | K22: r/c | L22: 1
A23: cDamp | B23: co wogas | D23: x 1 | E23: r-zeta | F23: r-zeta | G23: coeff | H23: actual | I23: 139_76_36a | J23: act/targ | K23: ratio | M23: extra
A24: coeff | E24: = 1.00 | F24: = 1.00 | I24: x 1 | L24: 1 | M24: copy | O24: 1 | P24: 2 | Q24: % diff 1/2 | S24: 1 | T24: 3 | U24: % diff 1/3
A25: [calc] | B25: [calc] | C25: 0 | L25: [adjust]
A26: =L26*K$21*SQRT(4*85*B$20/32.2)/12 -> 49.15487856 | B26: =A26*C26 -> 49.15487856 | C26: 1 | D26: 49 | E26: -35 | F26: 0.989 | G26: 49 | H26: 1.385 | I26: =(L26*$L$24) -> 1.389 | J26: 1 | K26: 0.71 | L26: 1.389 | M26: 1.389 | O26: =I26 -> 1.389 | P26: =I46 -> 1.375 | Q26: =(O26/P26) -> 1.010181818 | S26: =I26 -> 1.389 | T26: =I66 -> 1.08 | U26: =(S26/T26) -> 1.286111111
A27: =L27*K$21*SQRT(4*85*B$20/32.2)/12 -> 36.59189664 | B27: =A27*C27 -> 73.18379327 | C27: 2 | D27: 73 | E27: -65 | F27: 0.918 | G27: 37 | H27: 1.031 | I27: =(L27*$L$24) -> 1.034 | J27: 1 | K27: 0.89 | L27: 1.034 | M27: 1.034 | O27: =I27 -> 1.034 | P27: =I47 -> 1.09 | Q27: =(O27/P27) -> 0.9486238532 | S27: 1.034 | T27: 0.855 | U27: =(S27/T27) -> 1.209356725
A28: 31.74364728 | B28: 95.23094183 | C28: 3 | D28: 95 | E28: -89 | F28: 0.839 | G28: 32 | H28: 0.896 | I28: 0.897 | J28: 1 | K28: 0.94 | L28: 0.897 | M28: 0.897 | O28: 0.897 | P28: 0.95 | Q28: 0.9442105263 | S28: 0.897 | T28: 0.745 | U28: 1.204026846
A29: 28.94794144 | B29: 115.7917658 | C29: 4 | D29: 116 | E29: -111 | F29: 0.786 | G29: 29 | H29: 0.819 | I29: 0.818 | J29: 1 | K29: 0.96 | L29: 0.818 | M29: 0.818 | O29: 0.818 | P29: 0.847 | Q29: 0.9657615112 | S29: 0.818 | T29: 0.664 | U29: 1.231927711
A30: 27.00156396 | B30: 135.0078198 | C30: 5 | D30: 135 | E30: -131 | F30: 0.74 | G30: 27 | H30: 0.763 | I30: 0.763 | J30: 1 | K30: 0.97 | L30: 0.763 | M30: 0.763 | O30: 0.763 | P30: 0.777 | Q30: 0.981981982 | S30: 0.763 | T30: 0.61 | U30: 1.250819672
A31: 21.23320888 | B31: 212.3320888 | C31: 10 | D31: 212 | E31: -248 | F31: 0.701 | G31: 21 | H31: 0.599 | I31: 0.6 | J31: 1 | K31: 1.17 | L31: 0.6 | M31: 0.6 | O31: 0.6 | P31: 0.61 | Q31: 0.9836065574 | S31: 0.6 | T31: 0.48 | U31: 1.25
A32: 16.95117842 | B32: 339.0235685 | C32: 20 | D32: 339 | E32: -495 | F32: 0.701 | G32: 17 | H32: 0.48 | I32: 0.479 | J32: 1 | K32: 1.46 | L32: 0.479 | M32: 0.479 | O32: 0.479 | P32: 0.495 | Q32: 0.9676767677 | S32: 0.479 | T32: 0.398 | U32: 1.203517588
A33: 15.04018962 | B33: 451.2056887 | C33: 30 | D33: 451 | E33: -743 | F33: 0.701 | G33: 15 | H33: 0.424 | I33: 0.425 | J33: 1 | K33: 1.65 | L33: 0.425 | M33: 0.425 | O33: 0.425 | P33: 0.447 | Q33: 0.9507829978 | S33: 0.425 | T33: 0.353 | U33: 1.203966006
A34: 13.76619709 | B34: 550.6478836 | C34: 40 | D34: 551 | E34: -991 | F34: 0.701 | G34: 14 | H34: 0.39 | I34: 0.389 | J34: 1 | K34: 1.8 | L34: 0.389 | M34: 0.389 | O34: 0.389 | P34: 0.417 | Q34: 0.932853717 | S34: 0.389 | T34: 0.325 | U34: 1.196923077
A35: 12.84609137 | B35: 642.3045686 | C35: 50 | D35: 642 | E35: -1239 | F35: 0.701 | G35: 13 | H35: 0.362 | I35: 0.363 | J35: 1 | K35: 1.93 | L35: 0.363 | M35: 0.363 | O35: =I35 -> 0.363 | P35: 0.394 | Q35: 0.921319797 | S35: 0.363 | T35: 0.307 | U35: 1.182410423
AF37: vdb / excel / zeta_c-zeta_graph_7171_3304_sh.xlsm
AF39: We will take these numbers and compare to
A40: k.spring | B40: =K40*2.20462*25.4*12 -> 3124.652018 | C40: 3304 | D40: 2018 SXF 350 | F40: 8-22-18 | H40: macro | I40: spr = | K40: 4.65 | AC40: 3304 | AF40: what we have in zeta_backwards.xlsx
C41: id 9 | D41: 3304 Cody Harris trendline v6 | H41: done | I41: levratio = | K41: 2.46 | AC41: id 9
C42: ips | D42: co wogas | E42: ro wogas | F42: r-zeta | G42: cDamp | H42: czeta | I42: c-zeta | J42: c-zeta % | K42: r/c | L42: 2 | AC42: ips | AD42: hand | AG42: 9-8-18, we compared these numbers
A43: cDamp | B43: co wogas | D43: x 1 | E43: r-zeta | F43: r-zeta | G43: coeff | H43: actual | I43: 137_78_39b | J43: act/targ | K43: ratio | M43: extra | AD43: tweaked | AE43: original | AG43: with the ones we produced from
A44: coeff | E44: = 1.00 | F44: = 1.00 | I44: x 1 | L44: 1 | M44: copy | AD44: c-zeta | AE44: c-zeta | AF44: % diff | AG44: zeta_backwards.xlsx and there is only
A45: [calc] | B45: [calc] | C45: 0 | L45: [adjust] | AC45: 0 | AG45: 3-4% difference at 1-5 ips. Who's
A46: =L46*K$41*SQRT(4*85*B$40/32.2)/12 -> 51.19987623 | B46: =A46*C46 -> 51.19987623 | C46: 1 | D46: 51 | E46: -37 | F46: 0.994 | G46: 51 | H46: 1.37 | I46: =(L46*$L$44) -> 1.375 | J46: 1 | K46: 0.73 | L46: 1.375 | M46: 1.375 | N46: =D46-B46 -> -0.1998762338 | AC46: 1 | AD46: 1.375 | AE46: 1.375 | AF46: =AD46/AE46 -> 1 | AG46: to say the current numbers aren't right.
A47: =L47*K$41*SQRT(4*85*B$40/32.2)/12 -> 40.58753825 | B47: =A47*C47 -> 81.1750765 | C47: 2 | D47: 80 | E47: -68 | F47: 0.913 | G47: 40 | H47: 1.074 | I47: =(L47*$L$44) -> 1.09 | J47: 1 | K47: 0.85 | L47: 1.09 | M47: 1.09 | N47: =D47-B47 -> -1.175076502 | AC47: 2 | AD47: 1.09 | AE47: 1.078 | AF47: =AD47/AE47 -> 1.011131725 | AG47: So we will just keep using the numbers
A48: 35.37445994 | B48: 106.1233798 | C48: 3 | D48: 105 | E48: -94 | F48: 0.841 | G48: 35 | H48: 0.94 | I48: 0.95 | J48: 1 | K48: 0.9 | L48: 0.95 | M48: 0.95 | N48: -1.12337983 | AC48: 3 | AD48: 0.95 | AE48: 0.939 | AF48: 1.01171459 | AG48: we create from zeta_backwards.xlsx
A49: 31.53912376 | B49: 126.156495 | C49: 4 | D49: 126 | E49: -117 | F49: 0.787 | G49: 32 | H49: 0.846 | I49: 0.847 | J49: 1 | K49: 0.93 | L49: 0.847 | M49: 0.847 | N49: -0.1564950401 | AC49: 4 | AD49: 0.847 | AE49: 0.848 | AF49: 0.9988207547 | AG49: and not change to these numbers.
A50: 28.93258461 | B50: 144.662923 | C50: 5 | D50: 145 | E50: -138 | F50: 0.741 | G50: 29 | H50: 0.779 | I50: 0.777 | J50: 1 | K50: 0.95 | L50: 0.777 | M50: 0.777 | N50: 0.3370769685 | AC50: 5 | AD50: 0.777 | AE50: 0.779 | AF50: 0.9974326059
A51: 22.71412691 | B51: 227.1412691 | C51: 10 | D51: 226 | E51: -261 | F51: 0.701 | G51: 23 | H51: 0.607 | I51: 0.61 | J51: 1 | K51: 1.15 | L51: 0.61 | M51: 0.61 | N51: -1.14126911 | AC51: 10 | AD51: 0.61 | AE51: 0.607 | AF51: 1.004942339
A52: 18.43195544 | B52: 368.6391089 | C52: 20 | D52: 367 | E52: -521 | F52: 0.701 | G52: 18 | H52: 0.494 | I52: 0.495 | J52: 1 | K52: 1.42 | L52: 0.495 | M52: 0.495 | N52: -1.639108883 | AC52: 20 | AD52: 0.495 | AE52: 0.493 | AF52: 1.004056795
A53: 16.64461431 | B53: 499.3384293 | C53: 30 | D53: 498 | E53: -782 | F53: 0.701 | G53: 17 | H53: 0.446 | I53: 0.447 | J53: 1 | K53: 1.57 | L53: 0.447 | M53: 0.447 | N53: -1.338429306 | AC53: 30 | AD53: 0.447 | AE53: 0.446 | AF53: 1.002242152
A54: 15.5275261 | B54: 621.1010441 | C54: 40 | D54: 621 | E54: -1043 | F54: 0.701 | G54: 16 | H54: 0.416 | I54: 0.417 | J54: 1 | K54: 1.68 | L54: 0.417 | M54: 0.417 | N54: -0.1010440579 | AC54: 40 | AD54: 0.417 | AE54: 0.417 | AF54: 1
A55: 14.67109181 | B55: 733.5545904 | C55: 50 | D55: 734 | E55: -1303 | F55: 0.701 | G55: 15 | H55: 0.395 | I55: 0.394 | J55: 1 | K55: 1.78 | L55: 0.394 | M55: 0.394 | N55: 0.4454095958 | AC55: 50 | AD55: 0.394 | AE55: 0.394 | AF55: 1
A60: k.spring | B60: =K60*2.20462*25.4*12 -> 3359.84088 | C60: 3075 | D60: 2017 XCF 350 | F60: 2-17-18 | H60: macro | I60: spr = | K60: 5 | AC60: 3075
C61: id 7 | D61: 3075 Mike Kirsch trendline v3 | H61: done | I61: levratio = | K61: 2.46 | AC61: id 7
C62: ips | D62: co wogas | E62: ro wogas | F62: r-zeta | G62: cDamp | H62: czeta | I62: c-zeta | J62: c-zeta % | K62: r/c | L62: 3 | AC62: ips | AD62: hand
A63: cDamp | B63: co wogas | D63: x 1 | E63: r-zeta | F63: r-zeta | G63: coeff | H63: actual | I63: 113_61_31a | J63: act/targ | K63: ratio | M63: extra | AD63: tweaked | AE63: original
A64: coeff | E64: = 1.00 | F64: = 1.00 | I64: x 1 | L64: 1 | M64: copy | O64: 2 | P64: 3 | Q64: % diff 2/3 | AD64: c-zeta | AE64: c-zeta | AF64: % diff
A65: [calc] | B65: [calc] | C65: 0 | L65: [adjust] | AC65: 0
A66: =L66*K$61*SQRT(4*85*B$60/32.2)/12 -> 41.7011944 | B66: =A66*C66 -> 41.7011944 | C66: 1 | D66: 44 | E66: -39 | F66: 1.01 | G66: 44 | H66: 1.14 | I66: =(L66*$L$64) -> 1.08 | J66: 1.01 | K66: 0.89 | L66: 1.08 | M66: 1.08 | N66: =D66-B66 -> 2.298805596 | O66: =I46 -> 1.375 | P66: =I66 -> 1.08 | Q66: =(O66/P66) -> 1.273148148 | AC66: 1 | AD66: 1.08 | AE66: 1.13 | AF66: =AD66/AE66 -> 0.9557522124
A67: =L67*K$61*SQRT(4*85*B$60/32.2)/12 -> 33.01344557 | B67: =A67*C67 -> 66.02689114 | C67: 2 | D67: 66 | E67: -71 | F67: 0.919 | G67: 33 | H67: 0.855 | I67: =(L67*$L$64) -> 0.855 | J67: 1 | K67: 1.08 | L67: 0.855 | M67: 0.855 | N67: =D67-B67 -> -0.02689113917 | O67: 1.09 | P67: 0.855 | Q67: =(O67/P67) -> 1.274853801 | AC67: 2 | AD67: 0.855 | AE67: 0.856 | AF67: =AD67/AE67 -> 0.9988317757
A68: 28.7661017 | B68: 86.29830509 | C68: 3 | D68: 85 | E68: -98 | F68: 0.847 | G68: 28 | H68: 0.733 | I68: 0.745 | J68: 0.99 | K68: 1.15 | L68: 0.745 | M68: 0.745 | N68: -1.298305085 | O68: 0.95 | P68: 0.745 | Q68: 1.275167785 | AC68: 3 | AD68: 0.745 | AE68: 0.737 | AF68: 1.010854817
A69: 25.63851211 | B69: 102.5540485 | C69: 4 | D69: 102 | E69: -121 | F69: 0.785 | G69: 26 | H69: 0.66 | I69: 0.664 | J69: 1 | K69: 1.19 | L69: 0.664 | M69: 0.664 | N69: -0.5540484594 | O69: 0.847 | P69: 0.664 | Q69: 1.27560241 | AC69: 4 | AD69: 0.664 | AE69: 0.663 | AF69: 1.001508296
A70: 23.55345239 | B70: 117.767262 | C70: 5 | D70: 118 | E70: -143 | F70: 0.741 | G70: 24 | H70: 0.611 | I70: 0.61 | J70: 1 | K70: 1.21 | L70: 0.61 | M70: 0.61 | N70: 0.2327380266 | O70: 0.777 | P70: 0.61 | Q70: 1.273770492 | AC70: 5 | AD70: 0.61 | AE70: 0.61 | AF70: 1
A71: 18.53386418 | B71: 185.3386418 | C71: 10 | D71: 188 | E71: -270 | F71: 0.699 | G71: 19 | H71: 0.487 | I71: 0.48 | J71: 1 | K71: 1.44 | L71: 0.48 | M71: 0.48 | N71: 2.661358206 | O71: 0.61 | P71: 0.48 | Q71: 1.270833333 | AC71: 10 | AD71: 0.48 | AE71: 0.487 | AF71: 0.9856262834
A72: 15.36766238 | B72: 307.3532476 | C72: 20 | D72: 310 | E72: -541 | F72: 0.702 | G72: 16 | H72: 0.401 | I72: 0.398 | J72: 1 | K72: 1.75 | L72: 0.398 | M72: 0.398 | N72: 2.646752358 | O72: 0.495 | P72: 0.398 | Q72: 1.243718593 | AC72: 20 | AD72: 0.398 | AE72: 0.401 | AF72: 0.9925187032
A73: 13.63011262 | B73: 408.9033785 | C73: 30 | D73: 411 | E73: -811 | F73: 0.699 | G73: 14 | H73: 0.355 | I73: 0.353 | J73: 1 | K73: 1.97 | L73: 0.353 | M73: 0.353 | N73: 2.096621542 | O73: 0.447 | P73: 0.353 | Q73: 1.266288952 | AC73: 30 | AD73: 0.353 | AE73: 0.355 | AF73: 0.9943661972
A74: 12.54897054 | B74: 501.9588215 | C74: 40 | D74: 504 | E74: -1081 | F74: 0.699 | G74: 13 | H74: 0.326 | I74: 0.325 | J74: 1 | K74: 2.14 | L74: 0.325 | M74: 0.325 | N74: 2.041178474 | O74: 0.417 | P74: 0.325 | Q74: 1.283076923 | AC74: 40 | AD74: 0.325 | AE74: 0.326 | AF74: 0.9969325153
A75: 11.85395063 | B75: 592.6975316 | C75: 50 | D75: 595 | E75: -1351 | F75: 0.699 | G75: 12 | H75: 0.308 | I75: 0.307 | J75: 1 | K75: 2.27 | L75: 0.307 | M75: 0.307 | N75: 2.302468429 | O75: 0.394 | P75: 0.307 | Q75: 1.283387622 | AC75: 50 | AD75: 0.307 | AE75: 0.308 | AF75: 0.9967532468
Q76: =SUM(Q66:Q75)/10 -> 1.271984806
C115: end

Sheet Sheet3
